[Event "Moscow-chW 2019"]
[Site "Moscow"]
[Date "2019.04.07"]
[Round "9.2"]
[White "Utiatskaja, Irina"]
[Black "Kirchei, Viktoriia"]
[Result "1/2-1/2"]
[ECO "B07"]
[WhiteElo "2210"]
[BlackElo "2086"]
[Annotator "NA"]
[PlyCount "110"]
[EventDate "2019.03.30"]
[EventType "swiss"]
[EventCountry "RUS"]
[SourceTitle "playchess.com"]
[Source "ChessBase"]
[SourceQuality "1"]
[TimeControl "5400+30"]

1. e4 {[%emt 0:00:00]} d6 {[%emt 0:00:00]} 2. d4 {[%emt 0:00:05]} Nf6 {[%emt 0:00:05]} 3. Nc3 {[%emt 0:00:31]} Nbd7 {[%emt 0:01:12]} 4. Bc4 {[%emt 0:00:55]} e5 {[%emt 0:00:56]} 5. Nf3 {[%emt 0:00:12]} Be7 {[%emt 0:01:01]} 6. O-O {[%emt 0:00:35]} O-O {[%emt 0:00:44]} 7. a4 {[%emt 0:00:26]} b6 {[%emt 0:03:11]} 8. Re1 {[%emt 0:06:27]} a6 {[%emt 0:01:18]} 9. b3 {[%emt 0:09:52]} Bb7 {[%emt 0:01:14]} 10. Bb2 {[%emt 0:00:50] LiveBook: 108 Games} c6 {[%emt 0:00:38]} 11. Bf1 {[%emt 0:01:07] C41: Philidor Defence} (11. d5 Nc5 12. dxc6 Bxc6 13. Nd2 Qd7 14. Qe2 Rfc8 15. Ba3 Ne6 16. g3 Nd4 17. Qd1 b5 18. Bd3 Qh3 19. Bf1 Qh6 20. Re3 Bd7 21. f3 Qxe3+ {0-1 (21) Zhang,Z (2645)-Bortnyk,O (2581) Doha 2016}) 11... Qc7 12. g3 {[%emt 0:10:24]} Kh8 $146 {[%emt 0:15:41]} ({Predecessor:} 12... Rfe8 13. Bg2 Bf8 14. Nh4 Rad8 15. Nf5 g6 16. Ne3 exd4 17. Qxd4 Bg7 18. Qc4 Qb8 {1-0 (48) Pitschka,C (2249)-August,D (2056) Hastings 2018}) 13. Bg2 {[%emt 0:00:43]} Ng8 {[%emt 0:01:30]} 14. Bh3 {[%emt 0:06:23]} Rad8 {[%emt 0:01:42]} 15. Nb1 {[%emt 0:01:13]} Bf6 {[%emt 0:02:28]} 16. c4 {[%emt 0:08:46]} exd4 {[%emt 0:14:55]} 17. Bxd4 {[%emt 0:01:08]} Ne5 {[%emt 0:03:05]} 18. Bc3 $11 {[%emt 0:05:48]} Rfe8 {[%emt 0:14:04]} 19. Nxe5 {[%emt 0:08:55]} dxe5 {[%emt 0:02:26]} 20. Qe2 {[%emt 0:00:02]} Be7 {[%emt 0:02:46]} 21. a5 {[%emt 0:11:40]} b5 {[%emt 0:01:54]} 22. b4 {[%emt 0:00:21]} c5 {[%emt 0:08:17]} 23. bxc5 {[%emt 0:00:10]} bxc4 {[%emt 0:00:32]} 24. Qxc4 {[%emt 0:00:36]} Qxc5 {[%emt 0:01:24]} 25. Na3 {[%emt 0:10:59]} Nf6 {[%emt 0:01:13]} 26. Qxc5 {[%emt 0:04:15]} Bxc5 {[%emt 0:00:05]} 27. Bg2 {[%emt 0:00:09]} Rd3 {[%emt 0:00:59]} 28. Nb1 {[%emt 0:00:04]} Rc8 {[%emt 0:05:32]} 29. Ra2 {[%emt 0:02:40]} Bd4 {[%emt 0:08:53]} 30. Bxd4 {[%emt 0:01:25]} exd4 {[%emt 0:00:43]} 31. e5 {[%emt 0:03:13]} Bxg2 {[%emt 0:00:23]} 32. Kxg2 {[%emt 0:00:36]} Nd5 {[%emt 0:00:13]} 33. Rb2 {[%emt 0:00:50]} Nc3 {[%emt 0:02:20]} 34. Nxc3 {[%emt 0:02:00]} dxc3 {[%emt 0:00:24]} 35. Rc2 {[%emt 0:00:12]} Rd2 {[%emt 0:01:56]} 36. Rxd2 {[%emt 0:00:43]} cxd2 {[%emt 0:00:05]} 37. Rd1 {[%emt 0:00:02]} Rd8 {[%emt 0:00:13]} 38. Kf3 {[%emt 0:00:59]} Rd5 {[%emt 0:00:31]} 39. Ke4 {[%emt 0:00:07]} Rxa5 {[%emt 0:00:15]} 40. Rxd2 {[%emt 0:00:05]} g6 {[%emt 0:00:27]} 41. Rd7 {[%emt 0:00:22]} Kg8 {[%emt 0:00:19]} 42. Ra7 {[%emt 0:01:59]} Ra2 {[%emt 0:01:11]} 43. Kf3 {[%emt 0:00:29]} h5 {[%emt 0:00:35]} 44. h4 {[%emt 0:01:26]} Ra4 {[%emt 0:00:12]} 45. Ke3 {[%emt 0:00:25]} Kf8 {[%emt 0:00:21]} 46. Kf3 {[%emt 0:00:21]} Ra2 {[%emt 0:01:20]} 47. Kg2 {[%emt 0:00:19]} a5 {[%emt 0:00:23]} 48. Kf3 {[%emt 0:00:16]} a4 {[%emt 0:00:34]} 49. Kg2 {[%emt 0:00:08]} a3 {[%emt 0:00:35]} 50. Kf3 {[%emt 0:00:04]} Ke8 {[%emt 0:00:49]} 51. Kg2 {[%emt 0:00:23]} Kf8 {[%emt 0:01:52]} 52. Kf3 {[%emt 0:00:05]} Ra1 {[%emt 0:00:56]} 53. Kg2 {[%emt 0:00:08]} Ke8 {[%emt 0:00:26]} 54. Kf3 {[%emt 0:00:08]} Kf8 {[%emt 0:00:21]} 55. Kg2 {[%emt 0:00:04]} Ke8 {[%emt 0:00:18]} 1/2-1/2

[Event "Moscow-chW 2019"]
[Site "Moscow"]
[Date "2019.04.07"]
[Round "9.3"]
[White "Charochkina, Daria"]
[Black "Korchagina, Alena"]
[Result "1-0"]
[ECO "D00"]
[WhiteElo "2330"]
[BlackElo "2191"]
[Annotator "NA"]
[PlyCount "99"]
[EventDate "2019.03.30"]
[EventType "swiss"]
[EventCountry "RUS"]
[SourceTitle "playchess.com"]
[Source "ChessBase"]
[SourceQuality "1"]
[TimeControl "5400+30"]

1. d4 {[%emt 0:00:00]} d5 {[%emt 0:00:00]} 2. Bf4 {[%emt 0:00:00]} Nf6 {[%emt 0:00:00]} 3. e3 {[%emt 0:00:00]} c5 {[%emt 0:01:21]} 4. c3 {[%emt 0:00:06]} Nc6 {[%emt 0:00:22]} 5. Nd2 {[%emt 0:00:21]} e6 {[%emt 0:00:50]} 6. Ngf3 {[%emt 0:00:22]} Bd6 {[%emt 0:00:22]} 7. Bg3 {[%emt 0:00:07]} O-O {[%emt 0:00:09]} 8. Bb5 {[%emt 0:00:33]} Ne7 {[%emt 0:02:37]} 9. Bd3 {[%emt 0:00:20]} Nf5 {[%emt 0:09:22]} 10. Be5 {[%emt 0:05:27]} Bxe5 {[%emt 0:18:19]} 11. Nxe5 b6 {[%emt 0:06:02]} 12. Qf3 {[%emt 0:09:55]} Nd6 {[%emt 0:00:51]} 13. Qh3 {[%emt 0:11:52]} Nfe4 {[%emt 0:08:46]} 14. f3 {[%emt 0:12:31]} Ng5 {[%emt 0:08:25]} 15. Qh5 {[%emt 0:00:05]} g6 {[%emt 0:01:59]} 16. Qh6 {[%emt 0:06:27]} Nf5 {[%emt 0:01:13]} 17. Bxf5 $11 {[%emt 0:00:06]} exf5 {[%emt 0:00:03]} 18. Nc6 {[%emt 0:08:26]} Qf6 {[%emt 0:07:46]} 19. h4 {[%emt 0:00:08]} Ne6 {[%emt 0:15:51]} 20. h5 {[%emt 0:00:11]} Re8 {[%emt 0:00:03]} 21. O-O-O {[%emt 0:01:58]} Nxd4 {[%emt 0:04:53]} 22. Nxd4 {[%emt 0:00:55]} cxd4 {[%emt 0:00:04]} 23. exd4 {[%emt 0:00:51]} Qg7 {[%emt 0:01:13]} 24. hxg6 {[%emt 0:03:25]} fxg6 {[%emt 0:00:09]} 25. Qf4 {[%emt 0:01:56]} g5 {[%emt 0:03:36]} 26. Qd6 {[%emt 0:00:35]} Be6 {[%emt 0:02:21]} 27. Rde1 {[%emt 0:02:46]} Rad8 {[%emt 0:00:44]} 28. Qe5 {[%emt 0:01:27]} f4 {[%emt 0:04:24]} 29. g4 {[%emt 0:04:02]} Bf7 {[%emt 0:00:48]} 30. Qf5 {[%emt 0:07:13]} h6 {[%emt 0:01:10]} 31. Re5 {[%emt 0:00:18]} Rxe5 {[%emt 0:01:02]} 32. Qxe5 {[%emt 0:01:02]} Re8 {[%emt 0:00:22]} 33. Qd6 {[%emt 0:04:52]} Kh7 {[%emt 0:00:43]} 34. Qd7 {[%emt 0:03:16]} a5 {[%emt 0:00:25]} 35. c4 {[%emt 0:00:17]} Re2 {[%emt 0:00:41]} 36. cxd5 {[%emt 0:00:59]} Bg6 {[%emt 0:00:29]} 37. Qxg7+ {[%emt 0:00:44]} Kxg7 {[%emt 0:00:01]} 38. d6 {[%emt 0:02:47]} Re8 {[%emt 0:00:57]} 39. Nc4 {[%emt 0:00:55]} Rc8 {[%emt 0:00:35]} 40. b3 {[%emt 0:00:03]} b5 {[%emt 0:00:23]} 41. d7 {[%emt 0:00:03]} Rd8 {[%emt 0:00:03]} 42. Ne5 {[%emt 0:01:06]} a4 {[%emt 0:00:14]} 43. Kd2 {[%emt 0:01:43]} axb3 {[%emt 0:00:53]} 44. axb3 {[%emt 0:00:04]} Bf7 {[%emt 0:00:55]} 45. Rc1 {[%emt 0:02:57]} Be6 {[%emt 0:00:26]} 46. Rc6 {[%emt 0:00:03]} Kf6 {[%emt 0:00:33]} 47. d5 {[%emt 0:00:11]} Kxe5 {[%emt 0:00:28]} 48. dxe6 {[%emt 0:00:03]} Kf6 {[%emt 0:00:33]} 49. Rc8 {[%emt 0:00:07]} Ke7 {[%emt 0:00:28]} 50. b4 {[%emt 0:00:04]} 1-0

[Event "Moscow-chW 2019"]
[Site "Moscow"]
[Date "2019.04.07"]
[Round "9.4"]
[White "Diakonova, Ekaterina"]
[Black "Mirzoeva, Elmira"]
[Result "1-0"]
[ECO "B30"]
[WhiteElo "2214"]
[BlackElo "2262"]
[Annotator "NA"]
[PlyCount "71"]
[EventDate "2019.03.30"]
[EventType "swiss"]
[EventCountry "RUS"]
[SourceTitle "playchess.com"]
[Source "ChessBase"]
[SourceQuality "1"]
[TimeControl "5400+30"]

1. e4 c5 {[%emt 0:00:00]} 2. Nf3 {[%emt 0:02:08]} Nc6 {[%emt 0:00:00]} 3. Bb5 {[%emt 0:00:06]} Nf6 {[%emt 0:00:15]} 4. e5 {[%emt 0:07:57]} Nd5 {[%emt 0:00:16]} 5. c3 {[%emt 0:00:04]} g6 {[%emt 0:04:23]} 6. O-O {[%emt 0:01:31]} Bg7 {[%emt 0:00:48]} 7. d4 {[%emt 0:00:49]} cxd4 {[%emt 0:02:18]} 8. cxd4 {[%emt 0:00:04]} O-O {[%emt 0:01:02]} 9. Nc3 {[%emt 0:02:11]} Nc7 {[%emt 0:06:00]} 10. Bf4 {[%emt 0:09:42]} Nxb5 11. Nxb5 a6 {[%emt 0:12:26] B31: Sicilian: 2...Nc6 3 Bb5 g6} 12. Nc3 {[%emt 0:00:32]} d6 {[%emt 0:00:37]} 13. exd6 {[%emt 0:02:11]} exd6 {[%emt 0:00:44]} 14. d5 {[%emt 0:00:46]} (14. h3 d5 15. Re1 Be6 16. Qd2 Re8 17. Re2 Qb6 18. Rae1 Nxd4 19. Nxd4 Qxd4 20. Qxd4 Bxd4 21. Nxd5 Rac8 22. Bd6 Kh8 23. Nc7 Red8 24. Nxe6 Rxd6 25. Nxd4 Rxd4 26. Re7 Kg7 27. R1e2 b5 {½-½ (27) Zvjaginsev,V (2636)-Bacrot,E (2722) Moscow 2009}) 14... Ne7 $146 {[%emt 0:10:21]} ({Predecessor:} 14... Ne5 15. h3 b5 16. a3 {0-1 (23) Meskenaite,R (1706)-Gailiunaite,S (1894) Kaunas 2017}) 15. h3 {[%emt 0:00:12]} h6 {[%emt 0:07:14]} 16. Qd2 {[%emt 0:03:27]} g5 {[%emt 0:01:21]} 17. Bh2 {[%emt 0:04:41]} Ng6 {[%emt 0:08:35]} 18. Nd4 {[%emt 0:10:28]} Qb6 {[%emt 0:10:37]} 19. Rad1 {[%emt 0:00:49]} Re8 $14 {[%emt 0:01:21]} 20. Na4 {[%emt 0:03:08]} Qxd4 {[%emt 0:11:42]} 21. Qxd4 {[%emt 0:00:04]} Bxd4 {[%emt 0:00:02]} 22. Rxd4 {[%emt 0:00:02]} Ne5 {[%emt 0:00:07]} 23. Nb6 {[%emt 0:04:00]} Rb8 {[%emt 0:00:06]} 24. f4 {[%emt 0:05:35]} gxf4 {[%emt 0:02:57]} 25. Rdxf4 {[%emt 0:01:03]} f5 {[%emt 0:03:07]} 26. Rh4 {[%emt 0:06:53]} Nf7 {[%emt 0:04:31]} 27. Rc1 {[%emt 0:04:17]} f4 {[%emt 0:01:11]} 28. Rxf4 {[%emt 0:00:21]} Ne5 {[%emt 0:00:18]} 29. Rf6 {[%emt 0:01:38]} Kg7 {[%emt 0:04:36]} 30. Rxd6 {[%emt 0:01:29]} Bf5 {[%emt 0:01:07]} 31. Bxe5+ {[%emt 0:03:56]} Rxe5 {[%emt 0:00:02]} 32. g4 {[%emt 0:00:02]} Be4 {[%emt 0:02:46]} 33. Rc7+ {[%emt 0:00:47]} Kg8 {[%emt 0:00:52]} 34. Nd7 {[%emt 0:00:32]} Rxd5 {[%emt 0:00:54]} 35. Nf6+ {[%emt 0:00:20]} Kf8 {[%emt 0:00:10]} 36. Nxd5 {[%emt 0:00:07]} 1-0